bitfinex/quotes_BTCUSD_20220211
["timestamp","ask_amount","ask_price","bid_price","bid_amount"]
[1644595721011,1.21153118,43639.0,43638.0,0.06352397]
[1644595721757,0.057331,43632.0,43630.0,0.00377503]
[1644595721958,0.16112787,43632.0,43630.0,0.00377503]
[1644595722160,0.16112787,43632.0,43631.0,0.08836237]
[1644595722359,0.10379687,43632.0,43631.0,0.08836237]
[1644595722561,0.12842351,43633.0,43631.0,0.08836237]
[1644595722761,0.12842351,43633.0,43631.0,0.0011]
[1644595722961,0.10379687,43632.0,43631.0,0.0011]
[1644595724362,0.10379687,43632.0,43631.0,0.2311]
[1644595724762,0.09731278,43632.0,43631.0,0.2311]
[1644595726015,0.1349076,43633.0,43631.0,0.2311]
[1644595726016,0.12842351,43633.0,43631.0,0.2311]
[1644595726214,0.12842351,43633.0,43631.0,0.2811]
[1644595726413,0.12842351,43633.0,43631.0,0.33840972]
[1644595726812,0.12842351,43633.0,43631.0,0.43840972]
[1644595727012,0.12842351,43633.0,43631.0,0.49572472]
[1644595727613,0.00015766,43639.0,43632.0,1.62506449]
[1644595727816,0.00015766,43639.0,43633.0,0.05730978]
[1644595728013,0.00015766,43639.0,43633.0,0.16041578]
[1644595728214,0.00015766,43639.0,43633.0,0.10310978]
[1644595728413,5.0,43635.0,43634.0,0.057311]
[1644595728658,5.0,43635.0,43634.0,0.0458]
[1644595728857,5.0,43635.0,43634.0,0.04647239]
[1644595729858,5.0,43635.0,43634.0,0.0458]
[1644595730057,5.0,43635.0,43634.0,0.32690236]
[1644595730462,5.0,43635.0,43634.0,0.0458]
[1644595730757,5.0,43635.0,43634.0,0.32698615]
[1644595730961,5.0,43635.0,43634.0,0.103112]
[1644595731159,5.0,43635.0,43634.0,0.32675312]
[1644595731759,5.0,43635.0,43634.0,0.3268252]
[1644595732160,2.78588915,43635.0,43634.0,0.3268252]
[1644595732416,0.41656206,43642.0,43636.0,0.05730219]
[1644595732611,0.00067571,43643.0,43641.0,0.04351591]
[1644595732812,0.00067571,43643.0,43642.0,0.40723628]
[1644595733011,0.00067571,43643.0,43642.0,0.17074768]
[1644595733210,0.00067571,43643.0,43642.0,1.21718382]
[1644595733414,0.53295851,43654.0,43642.0,1.21718382]
[1644595733613,0.53295851,43654.0,43651.0,0.08221816]
[1644595733910,0.57836929,43658.0,43651.0,0.08221816]
[1644595733911,0.29898598,43652.0,43651.0,7.208e-05]
[1644595734512,0.57080632,43652.0,43651.0,7.208e-05]
[1644595734710,0.6200397,43652.0,43651.0,7.208e-05]
[1644595734911,0.00648409,43652.0,43651.0,7.208e-05]
[1644595735112,0.34821936,43652.0,43651.0,7.208e-05]
[1644595735311,0.34173527,43652.0,43651.0,7.208e-05]
[1644595735712,0.37144572,43652.0,43651.0,7.208e-05]
[1644595735912,0.09731278,43652.0,43651.0,7.208e-05]
[1644595736161,0.24398265,43652.0,43651.0,7.208e-05]
[1644595737562,0.24398265,43652.0,43651.0,0.00018115]
[1644595738166,0.24469463,43654.0,43651.0,0.00018115]
[1644595738364,0.19533199,43652.0,43651.0,0.00018115]
[1644595738764,0.00015899,43652.0,43651.0,0.00018115]
[1644595738963,0.19529336,43652.0,43651.0,0.00018115]
[1644595739167,0.00015899,43652.0,43651.0,0.00018115]
[1644595740215,0.19525391,43652.0,43651.0,0.00018115]
[1644595740413,0.58290996,43652.0,43651.0,0.00018115]
[1644595740623,0.95191054,43652.0,43651.0,0.00018115]
[1644595740817,0.70792789,43652.0,43651.0,0.00018115]
[1644595741417,0.86766004,43652.0,43651.0,1.15e-06]
[1644595741619,6e-05,43638.0,43634.0,0.07048092]
[1644595741815,0.09731278,43636.0,43634.0,0.06976862]
[1644595742017,0.09731278,43636.0,43634.0,0.07048092]
[1644595742018,0.10379687,43636.0,43634.0,0.07048092]
[1644595742414,0.42587426,43636.0,43634.0,0.07048092]
[1644595742616,0.41939017,43636.0,43634.0,0.07048092]
[1644595742916,0.42587426,43636.0,43634.0,0.07048092]
[1644595743115,0.42587426,43636.0,43634.0,0.06976862]
[1644595744375,0.32207739,43636.0,43634.0,0.06976862]
[1644595744775,6e-05,43638.0,43634.0,0.06976862]
[1644595744977,0.09737278,43638.0,43634.0,0.06976862]
[1644595745378,6e-05,43638.0,43634.0,0.06976862]
[1644595745579,0.10379687,43636.0,43634.0,0.06976862]
[1644595745779,0.10379687,43636.0,43634.0,0.07048076]
[1644595745981,0.10379687,43636.0,43635.0,0.28955653]
[1644595746176,0.10379687,43636.0,43634.0,0.30048076]
[1644595746378,0.09731278,43636.0,43634.0,0.30048076]
[1644595746778,0.09731278,43636.0,43634.0,0.29976862]
[1644595748408,0.09746968,43636.0,43634.0,0.23]
[1644595749409,0.09746968,43636.0,43634.0,0.30752018]
[1644595749614,0.322536,43635.0,43634.0,0.23]
[1644595749814,0.09746968,43636.0,43634.0,0.23]
[1644595750210,0.322536,43635.0,43634.0,0.23]
[1644595750410,0.09746968,43636.0,43634.0,0.23]
[1644595750611,0.09746968,43636.0,43634.0,0.23018116]
[1644595750813,0.322536,43635.0,43634.0,0.23018116]
[1644595751013,0.425666,43635.0,43634.0,0.23018116]
[1644595751268,0.62061821,43635.0,43634.0,0.23018116]
[1644595751663,0.09731278,43632.0,43631.0,0.0011]
[1644595751865,0.82981441,43632.0,43631.0,0.0011]
[1644595752064,1.34000881,43632.0,43631.0,0.0011]
[1644595752265,1.1453588,43632.0,43631.0,0.0011]
[1644595752568,1.1453588,43632.0,43623.0,0.0011]
[1644595752569,1.372536,43631.0,43623.0,0.0011]
[1644595752765,0.322536,43629.0,43623.0,0.0011]
[1644595752968,0.46255956,43629.0,43623.0,0.0011]
[1644595753164,0.82591607,43629.0,43623.0,0.0011]
[1644595753965,1.02056608,43629.0,43623.0,0.0011]
[1644595754364,0.82591607,43629.0,43623.0,0.0011]
[1644595754775,1.27591607,43629.0,43624.0,0.0005]
[1644595755027,0.10379687,43625.0,43624.0,0.0005]
[1644595755225,0.43462099,43625.0,43624.0,0.0005]
[1644595755429,0.47459177,43625.0,43624.0,0.0005]
[1644595756024,0.48107586,43625.0,43624.0,0.0005]
[1644595756428,0.368336,43625.0,43624.0,0.0005]
[1644595756627,0.0458,43625.0,43624.0,0.0005]
[1644595757226,0.0458,43625.0,43624.0,0.2305]
[1644595758031,0.51731278,43630.0,43629.0,0.07463126]
[1644595758229,0.42,43630.0,43629.0,0.07463126]
[1644595758528,0.42,43630.0,43624.0,0.2305]
[1644595758764,0.51731278,43630.0,43626.0,0.2987247]
[1644595758966,0.51731278,43630.0,43627.0,0.00071183]
[1644595759464,0.42,43630.0,43627.0,0.00071183]
[1644595759661,0.42,43630.0,43628.0,0.08644155]
[1644595759862,0.42,43630.0,43629.0,0.28299502]
[1644595760664,0.42,43630.0,43628.0,0.08644155]
[1644595761062,0.42,43630.0,43629.0,0.28791295]
[1644595761866,0.42,43630.0,43628.0,0.08644155]
[1644595762513,0.42,43630.0,43627.0,0.05801974]
[1644595762712,0.42,43630.0,43628.0,0.08627969]
[1644595763113,0.42,43630.0,43628.0,0.13627969]
[1644595763315,0.42015613,43630.0,43628.0,0.08627969]
[1644595764116,0.42015613,43630.0,43627.0,0.05732339]
[1644595765415,0.42015613,43630.0,43628.0,0.07541432]
[1644595766863,0.51746891,43630.0,43628.0,0.07541432]
[1644595767657,0.51746891,43630.0,43627.0,0.05732339]
[1644595767858,0.32592854,43629.0,43625.0,0.05800254]
[1644595768059,0.09731278,43627.0,43625.0,0.00067429]
[1644595768257,0.09731278,43627.0,43624.0,0.2305]
[1644595768457,0.00648409,43628.0,43625.0,0.00067427]
[1644595769059,0.00648409,43628.0,43625.0,0.08568342]
[1644595769260,0.42324132,43629.0,43625.0,0.08568342]
[1644595769465,0.42324132,43629.0,43625.0,0.08500915]
[1644595769661,0.32592854,43629.0,43625.0,0.08500915]
[1644595772016,0.32592854,43629.0,43625.0,0.14233778]
[1644595772313,0.32592854,43629.0,43624.0,0.23116817]
[1644595772314,0.322536,43625.0,43624.0,0.23116817]
[1644595773111,0.42137948,43623.0,43622.0,0.0033]
[1644595773310,0.42137948,43623.0,43622.0,0.00396818]
[1644595773311,0.42786357,43623.0,43622.0,0.00396818]
[1644595773514,0.00066,43622.0,43604.0,0.0522]
[1644595773783,0.00066,43622.0,43596.0,0.220021]
[1644595773784,0.00066,43622.0,43582.0,0.00069104]
[1644595773785,0.09731278,43590.0,43582.0,0.00069104]
[1644595773980,0.15379687,43583.0,43582.0,0.00069104]
[1644595774176,0.15379687,43583.0,43575.0,0.2026]
[1644595774177,0.7,43582.0,43575.0,0.2026]
[1644595774379,0.7,43582.0,43579.0,0.00358208]
[1644595774380,0.57838409,43580.0,43579.0,0.00358208]
[1644595774581,0.6177,43580.0,43579.0,0.00358208]
[1644595774774,0.368336,43580.0,43579.0,0.00358208]
[1644595774971,0.367236,43580.0,43579.0,0.00358208]
[1644595775173,0.09731278,43581.0,43579.0,0.00358208]
[1644595775174,0.13800859,43582.0,43579.0,0.00358208]
[1644595775375,0.114792,43584.0,43579.0,0.00358208]
[1644595775376,0.057402,43581.0,43579.0,0.00358208]
[1644595775572,0.379938,43581.0,43579.0,0.00358208]
[1644595775774,0.00648409,43580.0,43579.0,0.00358208]
[1644595776177,0.31669305,43581.0,43579.0,0.00358208]
[1644595776373,0.21938027,43581.0,43579.0,0.00358208]
[1644595776573,0.057402,43581.0,43579.0,0.00358208]
[1644595776774,0.00648409,43580.0,43579.0,0.00358208]
[1644595776989,0.00648409,43580.0,43579.0,0.07838939]
[1644595777811,0.057402,43581.0,43579.0,0.07838939]
[1644595778012,0.32725064,43581.0,43579.0,0.07838939]
[1644595778212,0.357402,43581.0,43579.0,0.07845149]
[1644595778413,0.3,43580.0,43579.0,0.07845149]
[1644595778614,0.06388609,43581.0,43579.0,0.07845149]
[1644595779013,0.057402,43581.0,43579.0,0.07845149]
[1644595779217,0.057402,43581.0,43579.0,0.00364418]
[1644595779513,0.09731278,43579.0,43578.0,0.10082418]
[1644595779718,0.39731278,43579.0,43578.0,0.10082418]
[1644595779914,0.09731278,43579.0,43578.0,0.10082418]
[1644595780112,0.12130309,43580.0,43578.0,0.10082418]
[1644595780514,0.40036445,43579.0,43578.0,0.10082418]
[1644595780713,0.30305167,43579.0,43578.0,0.10082418]
[1644595780912,0.40036445,43579.0,43578.0,0.10082418]
[1644595781170,0.90036445,43579.0,43578.0,0.33082418]
[1644595781571,1.05738397,43579.0,43578.0,0.33082418]
[1644595781772,0.96007119,43579.0,43578.0,0.33082418]
[1644595781975,0.96007119,43579.0,43570.0,0.28656377]
[1644595781976,1.05,43576.0,43567.0,0.1022]
[1644595782179,1.05,43576.0,43564.0,0.0011]
[1644595782180,1.05,43567.0,43564.0,0.0011]
[1644595782383,0.10379687,43565.0,43564.0,0.0011]
[1644595782773,0.51731278,43567.0,43564.0,0.0011]
[1644595782974,0.42633287,43565.0,43564.0,0.0011]
[1644595783375,0.58340032,43565.0,43564.0,0.0011]
[1644595783577,0.057421,43566.0,43564.0,0.0011]
[1644595783773,0.21448845,43566.0,43564.0,0.0011]
[1644595783974,0.322536,43565.0,43564.0,0.0011]
[1644595784373,0.40379687,43565.0,43563.0,0.00508145]
[1644595784575,0.10379687,43565.0,43563.0,8.145e-05]
[1644595785119,0.057412,43571.0,43566.0,0.06400954]
[1644595785317,1.05,43571.0,43556.0,0.3]
[1644595785528,0.05,43569.0,43547.0,0.00130464]
[1644595785718,0.45816355,43570.0,43547.0,0.05130464]
[1644595785719,0.23294033,43570.0,43547.0,0.05130464]
[1644595785918,0.09731278,43570.0,43550.0,0.05]
[1644595786117,0.05,43572.0,43565.0,0.29109101]
[1644595786319,0.09731278,43565.0,43551.0,0.01]
[1644595786517,0.09731278,43572.0,43551.0,0.06]
[1644595786716,0.05,43574.0,43551.0,0.06]
[1644595786717,0.05,43574.0,43551.0,0.36]
[1644595786919,0.00015461,43579.0,43551.0,0.36]
[1644595786920,0.09731278,43572.0,43551.0,0.36]
[1644595787118,0.00015461,43579.0,43556.0,0.05]
[1644595787317,0.00015461,43579.0,43556.0,0.0458]
[1644595787520,0.09731278,43572.0,43562.0,0.34701361]
[1644595787717,2.77745839,43563.0,43556.0,0.26482092]
[1644595788017,2.77745839,43563.0,43561.0,0.0006647]
[1644595788866,2.77745839,43563.0,43560.0,0.0002185]
[1644595788867,0.63195003,43562.0,43560.0,0.0002185]
[1644595789068,0.622536,43561.0,43560.0,0.00088317]
[1644595789263,0.057438,43562.0,43560.0,0.00066467]
[1644595789463,3.05162117,43563.0,43560.0,0.00066467]
[1644595790068,0.322536,43561.0,43555.0,0.0002185]
[1644595790267,0.422536,43561.0,43559.0,7.01e-06]
[1644595790470,0.322536,43553.0,43551.0,0.00522551]
[1644595790869,0.51984878,43553.0,43551.0,0.00522551]
[1644595791066,0.322536,43552.0,43551.0,0.00522551]
[1644595791275,0.722536,43552.0,43551.0,0.00522551]
[1644595791768,0.772536,43552.0,43551.0,0.00522551]
[1644595791970,0.00914638,43547.0,43537.0,0.0011]
[1644595792171,0.09731278,43542.0,43541.0,0.00141462]
[1644595792437,0.322584,43540.0,43537.0,0.0011]
[1644595792638,0.322584,43540.0,43526.0,0.04]
[1644595792639,1.072584,43538.0,43520.0,0.00487861]
[1644595792831,0.322584,43536.0,43535.0,0.00094135]
[1644595793033,0.09731278,43537.0,43535.0,0.00094135]
[1644595793230,0.09731278,43537.0,43521.0,0.0001504]
[1644595793231,0.00215885,43528.0,43527.0,0.33881669]
[1644595793429,0.00215885,43528.0,43521.0,0.00042656]
[1644595793732,0.00215885,43528.0,43527.0,0.05]
[1644595793932,0.00215885,43528.0,43527.0,0.280932]
[1644595794134,0.00215885,43528.0,43527.0,0.73486888]
[1644595794330,0.09731278,43546.0,43541.0,0.07492991]
[1644595794532,0.322584,43544.0,43541.0,0.07492991]
[1644595794729,0.322584,43544.0,43535.0,0.30409867]
[1644595794931,0.09731278,43543.0,43535.0,0.30409867]
[1644595795234,0.322584,43542.0,43535.0,0.30409867]
[1644595795635,0.05744571,43553.0,43535.0,0.30409867]
[1644595795636,0.3,43554.0,43544.0,0.18666905]
[1644595795840,2.85430839,43563.0,43545.0,0.280814]
[1644595795841,0.07685,43563.0,43545.0,0.280814]
[1644595796037,0.07685,43563.0,43555.0,0.06708406]
[1644595796268,0.09731278,43558.0,43555.0,0.0458]
[1644595796563,0.322584,43557.0,43550.0,0.29731862]
[1644595796961,0.322584,43557.0,43536.0,0.05743]
[1644595796962,0.322584,43557.0,43538.0,0.30027616]
[1644595797168,0.322584,43556.0,43547.0,0.06499932]
[1644595797362,0.322584,43556.0,43540.0,0.23570822]
[1644595797564,0.322584,43556.0,43547.0,0.33125271]
[1644595797867,0.322584,43556.0,43541.0,0.3]
[1644595797868,0.00068168,43550.0,43541.0,0.3]
[1644595798063,0.00068168,43550.0,43540.0,0.67817546]
[1644595798263,0.00068168,43550.0,43540.0,0.44246724]
[1644595798464,0.00068168,43550.0,43542.0,0.08683412]
[1644595798667,2.71673346,43551.0,43542.0,0.08683412]
[1644595798866,0.19731278,43557.0,43550.0,0.230779]
[1644595799066,0.322584,43556.0,43549.0,0.08383872]
[1644595799465,0.322584,43556.0,43549.0,0.13383872]
[1644595799667,0.29685,43564.0,43549.0,0.13383872]
[1644595799668,0.29685,43564.0,43555.0,0.05]
[1644595799918,0.24685,43564.0,43563.0,0.06322692]
[1644595800112,0.569434,43564.0,43563.0,0.06322692]
[1644595800310,0.569434,43564.0,43555.0,0.33568198]
[1644595800311,0.25,43563.0,43559.0,0.30023321]
[1644595800515,0.322584,43562.0,43556.0,0.0458]
[1644595800711,0.24685,43564.0,43556.0,0.0458]
[1644595801112,0.24685,43564.0,43554.0,0.25564025]
[1644595801412,0.00045856,43561.0,43555.0,0.08290629]
[1644595801616,0.322584,43560.0,43555.0,0.12870629]
[1644595801813,0.00045856,43561.0,43555.0,0.12870629]
[1644595801814,0.00045856,43561.0,43558.0,0.05]
[1644595802011,0.322584,43560.0,43559.0,0.0458]
[1644595802212,0.3,43567.0,43559.0,0.0458]
[1644595802413,0.32729877,43568.0,43566.0,0.07637167]
[1644595802614,0.10694334,43562.0,43556.0,0.41962802]
[1644595802816,0.322584,43561.0,43559.0,0.08381564]
[1644595803019,0.322584,43561.0,43560.0,0.0458]
[1644595803669,0.322584,43561.0,43559.0,0.23]
[1644595804266,0.1075665,43562.0,43559.0,0.23]
[1644595804465,0.322584,43561.0,43559.0,0.23]
[1644595805374,0.41989678,43560.0,43559.0,0.23]
[1644595805672,0.76328619,43560.0,43559.0,0.23]
[1644595805868,0.51989678,43560.0,43559.0,0.23]
[1644595806070,0.80440935,43560.0,43559.0,0.23]
[1644595806467,0.322584,43552.0,43549.0,0.00021509]
[1644595806668,0.322584,43552.0,43544.0,0.00021509]
[1644595806868,0.322584,43552.0,43543.0,0.65407058]
[1644595807067,0.322584,43552.0,43543.0,0.30271301]
[1644595807269,0.422584,43552.0,43539.0,0.00021509]
[1644595807519,0.422584,43552.0,43538.0,0.00027616]
[1644595807520,0.380039,43543.0,43538.0,0.00027616]
[1644595807718,0.43507096,43542.0,43538.0,0.00027616]
[1644595807914,0.30607869,43542.0,43538.0,0.00027616]
[1644595808317,0.15476778,43543.0,43538.0,0.00027616]
[1644595808318,0.322584,43541.0,43538.0,0.00049125]
[1644595808715,0.322584,43541.0,43538.0,0.00027616]
[1644595809015,0.28646131,43542.0,43538.0,0.00027616]
[1644595809914,0.322584,43541.0,43538.0,0.00027616]
[1644595810919,0.00070542,43545.0,43538.0,0.00027616]
[1644595811160,0.29332837,43545.0,43538.0,0.00027616]
[1644595811462,0.057449,43544.0,43538.0,0.00027616]
[1644595811661,0.09731278,43543.0,43538.0,0.00027616]
[1644595811861,0.29495555,43542.0,43538.0,0.00027616]
[1644595812661,0.322584,43541.0,43538.0,0.00027616]
[1644595813061,0.05745181,43543.0,43538.0,0.00027616]
[1644595813262,0.322584,43542.0,43538.0,0.00027616]
[1644595813467,0.322584,43542.0,43539.0,0.0680521]
[1644595813664,0.322584,43542.0,43539.0,0.06826719]
[1644595813865,0.322584,43542.0,43539.0,0.43610453]
[1644595814165,0.322584,43544.0,43539.0,0.43610453]
[1644595814764,0.322584,43544.0,43539.0,0.36805243]
[1644595815017,0.057449,43543.0,43539.0,0.00021509]
[1644595815216,0.09731278,43540.0,43539.0,0.23]
[1644595815417,0.322584,43540.0,43539.0,0.23021509]
[1644595815618,0.322584,43540.0,43539.0,0.23]
[1644595815917,0.322584,43540.0,43539.0,0.59001169]
[1644595816319,0.0006915,43545.0,43539.0,0.59001169]
[1644595816520,0.322584,43544.0,43539.0,0.59022678]
[1644595816918,0.322584,43544.0,43539.0,0.23021509]
[1644595817122,0.322584,43542.0,43539.0,0.23021509]
[1644595817318,0.322584,43541.0,43539.0,0.23021509]
[1644595817519,0.357448,43543.0,43539.0,0.23]
[1644595817919,0.322584,43542.0,43539.0,0.23021509]
[1644595818120,0.322584,43542.0,43539.0,0.31683372]
[1644595818766,0.322584,43542.0,43539.0,0.23021509]
[1644595818966,0.09731278,43540.0,43539.0,0.23021509]
[1644595819166,0.38004,43540.0,43539.0,0.23]
[1644595819765,0.22980937,43544.0,43543.0,0.07053044]
[1644595819766,0.322584,43544.0,43543.0,0.07053044]
[1644595820264,0.322584,43544.0,43539.0,0.42219616]
[1644595820265,0.322584,43544.0,43540.0,0.00021509]
[1644595820467,0.322584,43542.0,43539.0,0.23021509]
[1644595820666,0.00066691,43546.0,43541.0,0.30338827]
[1644595820867,0.322584,43545.0,43541.0,0.30338827]
[1644595821065,0.00066691,43546.0,43541.0,0.30338827]
[1644595821267,0.322584,43545.0,43541.0,0.30338827]
[1644595821465,0.41989678,43545.0,43544.0,0.06560229]
[1644595821665,0.13120457,43543.0,43542.0,0.00021509]
[1644595821866,0.45378857,43543.0,43542.0,0.07869268]
[1644595822264,0.45378857,43543.0,43540.0,0.00021509]
[1644595822265,0.322584,43542.0,43540.0,0.00021509]
[1644595822517,0.09731278,43540.0,43539.0,0.23021509]
[1644595822716,0.09731278,43540.0,43538.0,0.00055232]
[1644595822916,0.05745474,43541.0,43538.0,0.00055232]
[1644595823119,0.322584,43539.0,43538.0,0.00055232]
[1644595823319,0.13120457,43543.0,43538.0,0.07967035]
[1644595824121,0.13120457,43543.0,43542.0,0.2254124]
[1644595824319,0.13120457,43543.0,43542.0,0.4562444]
[1644595824519,0.13120457,43543.0,43542.0,0.77402695]
[1644595824723,0.25208101,43555.0,43542.0,0.91982695]
[1644595824923,0.574865,43558.0,43548.0,0.05]
[1644595824924,0.46,43558.0,43548.0,0.05]
[1644595825122,0.46,43558.0,43551.0,0.05]
[1644595825320,0.10694334,43562.0,43556.0,1.05]
[1644595825522,0.30242832,43569.0,43556.0,1.05]
[1644595825523,0.19465001,43568.0,43562.0,0.95]
[1644595825722,0.01,43569.0,43563.0,0.75494788]
[1644595826183,0.01,43569.0,43565.0,0.230677]
[1644595826375,0.01,43569.0,43566.0,0.0458]
[1644595826577,0.01,43569.0,43566.0,0.276471]
[1644595826979,0.00069059,43568.0,43566.0,0.276471]
[1644595827180,0.3,43574.0,43566.0,0.276471]
[1644595827181,0.24369027,43576.0,43568.0,1.05]
[1644595827380,0.29242832,43585.0,43577.0,1.05]
[1644595827581,0.30242832,43589.0,43582.0,0.05]
[1644595827778,0.01,43589.0,43583.0,0.34197489]
[1644595828080,0.01,43589.0,43584.0,0.25100887]
[1644595828279,0.01,43589.0,43585.0,0.376344]
[1644595828481,0.0001,43589.0,43587.0,0.230532]
[1644595828677,0.0001,43589.0,43588.0,0.0458]
[1644595829277,0.0001,43589.0,43581.0,0.16511019]
[1644595829479,0.0001,43589.0,43583.0,0.230554]
[1644595829679,0.0001,43589.0,43584.0,0.0458]
[1644595829913,0.0001,43589.0,43588.0,0.3698897]
[1644595830114,0.0001,43589.0,43588.0,0.4156897]
[1644595830613,0.00076621,43589.0,43588.0,0.4156897]
[1644595831214,0.00076621,43589.0,43588.0,0.0458]
[1644595831414,0.0001,43589.0,43588.0,0.0458]
[1644595831618,0.09159999,43585.0,43583.0,0.06330779]
[1644595831816,0.09159999,43585.0,43584.0,0.230549]
[1644595832016,0.09159999,43585.0,43584.0,0.57040252]
[1644595832224,0.0006662,43591.0,43587.0,0.2]
[1644595832416,0.0006662,43591.0,43590.0,0.05]
[1644595832615,0.29242832,43608.0,43590.0,0.16607296]
[1644595832815,0.29242832,43608.0,43590.0,0.0958]
[1644595833014,0.29242832,43607.0,43597.0,0.28765231]
[1644595833215,0.01,43609.0,43597.0,0.28765231]
[1644595833216,0.29242832,43608.0,43597.0,0.33765231]
[1644595833516,0.01,43609.0,43597.0,0.33765231]
[1644595833793,0.01,43609.0,43592.0,0.230492]
[1644595833993,0.01,43609.0,43592.0,0.0458]
[1644595834200,0.00045738,43600.0,43595.0,0.29674179]
[1644595834994,0.00045738,43600.0,43596.0,0.06612497]
[1644595835195,0.01,43609.0,43596.0,0.06612497]
[1644595835396,0.01045738,43599.0,43596.0,0.06612497]
[1644595836001,0.01045738,43599.0,43595.0,0.05]
[1644595836200,0.01045738,43599.0,43593.0,0.0423]
[1644595836400,0.01,43599.0,43593.0,0.0423]
[1644595836805,0.01,43599.0,43594.0,0.230483]
[1644595837000,0.01,43599.0,43594.0,0.32270824]
[1644595837418,0.01,43599.0,43595.0,0.230477]
[1644595837620,0.01,43599.0,43595.0,0.29831779]
[1644595837824,0.01,43609.0,43605.0,0.08567601]
[1644595838020,0.01,43609.0,43596.0,1.387817]
[1644595838021,0.01,43609.0,43597.0,0.39224442]
[1644595838218,0.01,43609.0,43597.0,0.49224442]
[1644595838418,0.01,43609.0,43605.0,0.31096964]
[1644595839219,0.322584,43607.0,43594.0,0.23]
[1644595839427,0.322584,43607.0,43594.0,0.28]
[1644595839623,0.01,43609.0,43594.0,0.23]
[1644595840224,0.00066546,43603.0,43596.0,0.25926234]
[1644595840423,0.322584,43602.0,43596.0,0.25926234]
[1644595840622,0.00066546,43603.0,43596.0,0.25926234]
[1644595840824,0.00066546,43603.0,43594.0,0.54919643]
[1644595841023,0.00066546,43603.0,43594.0,0.23]
[1644595841266,0.09731278,43605.0,43594.0,0.23]
[1644595841466,0.00045739,43602.0,43594.0,0.23]
[1644595842269,0.01,43609.0,43594.0,0.23]
[1644595842471,0.09731278,43606.0,43594.0,0.23]
[1644595842668,0.322584,43608.0,43594.0,0.23]
[1644595842669,0.00066845,43600.0,43594.0,0.23]
[1644595842870,0.00066845,43600.0,43599.0,0.08404919]
[1644595843069,0.00066845,43600.0,43599.0,0.41584995]
[1644595843270,0.00066845,43600.0,43599.0,0.46584995]
[1644595843470,0.01,43609.0,43599.0,0.46584995]
[1644595843669,0.322584,43608.0,43604.0,0.32853448]
[1644595843870,0.45629306,43600.0,43599.0,0.46584995]
[1644595844070,0.45629306,43600.0,43599.0,0.05]
[1644595844271,0.45629306,43600.0,43598.0,0.43343556]
[1644595845119,0.45629306,43600.0,43599.0,1.16758266]
[1644595845316,0.45629306,43600.0,43599.0,1.21758266]
[1644595845518,0.45629306,43600.0,43599.0,0.88713066]
[1644595845716,0.45629306,43600.0,43599.0,0.63753653]
[1644595845916,0.45629306,43600.0,43599.0,0.58753653]
[1644595846116,0.45629306,43600.0,43599.0,0.43061062]
[1644595846516,0.45629306,43600.0,43599.0,0.66106262]
[1644595846715,0.45629306,43600.0,43599.0,0.53061062]
[1644595846916,0.45629306,43600.0,43599.0,1.0587683]
[1644595847118,0.01016168,43609.0,43600.0,1.107346]
[1644595847324,0.01016168,43609.0,43608.0,0.29871948]
[1644595847517,0.01016168,43609.0,43607.0,0.39773549]
[1644595847721,0.01016168,43609.0,43608.0,0.31956721]
[1644595847920,0.01016168,43609.0,43608.0,0.0423]
[1644595848518,0.01,43609.0,43608.0,0.0423]
[1644595848775,0.42137948,43623.0,43610.0,1.530376]
[1644595848974,0.42137948,43623.0,43616.0,0.05]
[1644595849172,0.42137948,43623.0,43617.0,0.34811565]
[1644595849371,0.42137948,43623.0,43619.0,0.230318]
[1644595849570,0.42137948,43623.0,43620.0,0.32922299]
[1644595849768,0.42137948,43623.0,43622.0,0.057318]
[1644595849974,0.42137948,43623.0,43622.0,0.329917]
[1644595850370,0.42137948,43623.0,43622.0,0.429917]
[1644595850969,0.42137948,43623.0,43622.0,0.74739619]
[1644595851170,0.42137948,43623.0,43622.0,0.1423]
[1644595851370,0.42137948,43623.0,43622.0,0.34925292]
[1644595851570,0.42137948,43623.0,43622.0,0.57955192]
[1644595851769,0.42137948,43623.0,43622.0,0.44925292]
[1644595851972,0.42137948,43623.0,43622.0,0.67955192]
[1644595852170,0.01,43629.0,43624.0,0.08231965]
[1644595852425,0.01,43639.0,43629.0,1.05]
[1644595852628,0.01,43639.0,43630.0,0.272542]
[1644595852829,0.01,43639.0,43634.0,0.28751833]
[1644595853022,0.01,43639.0,43636.0,0.5467486]
[1644595853222,0.01,43639.0,43636.0,0.4588436]
[1644595853425,0.01,43639.0,43636.0,0.5588436]
[1644595853620,0.01,43639.0,43635.0,0.35320554]
[1644595853621,0.01045673,43639.0,43635.0,0.25856502]
[1644595853821,0.54549005,43634.0,43630.0,0.0423]
[1644595854426,0.05,43631.0,43630.0,0.0423]
[1644595854623,0.05,43631.0,43620.0,0.5]
[1644595854624,0.322462,43630.0,43620.0,0.5]
[1644595854824,0.29845909,43627.0,43616.0,0.31811485]
[1644595855023,0.05,43623.0,43610.0,0.3737]
[1644595855327,0.3,43622.0,43609.0,0.05]
[1644595855524,0.3,43626.0,43609.0,0.05]
[1644595855824,0.3,43626.0,43618.0,0.23496754]
[1644595856023,0.59549005,43634.0,43618.0,0.23496754]
[1644595856268,0.59549005,43634.0,43622.0,0.07096206]
[1644595856765,0.59549005,43634.0,43625.0,0.34809784]
[1644595856967,0.59549005,43634.0,43625.0,0.53703675]
[1644595857169,0.54549005,43634.0,43630.0,0.06516444]
[1644595857374,0.54549005,43634.0,43632.0,0.25735772]
[1644595857671,0.54549005,43634.0,43633.0,0.62639656]
[1644595857877,0.54549005,43634.0,43633.0,0.05]
[1644595858268,0.59549005,43634.0,43625.0,0.0423]
[1644595858468,0.00016306,43629.0,43625.0,0.0423]
[1644595859069,0.00016306,43629.0,43627.0,0.29110936]
[1644595859269,0.00016306,43629.0,43628.0,0.3031223]
[1644595859472,0.00016306,43629.0,43628.0,0.38539754]
[1644595859770,0.54549005,43634.0,43632.0,0.22983694]
[1644595860017,0.54549005,43634.0,43632.0,0.27983694]
[1644595860419,0.54549005,43634.0,43633.0,0.29073181]
[1644595860818,0.54549005,43634.0,43632.0,0.27983694]
[1644595861018,0.54049005,43634.0,43632.0,0.22983694]
[1644595861422,0.95719773,43633.0,43632.0,0.22983694]
[1644595861618,0.19923083,43625.0,43611.0,0.5]
[1644595861817,0.45359254,43628.0,43611.0,0.0860023]